[Event "Fagernes GM Open Autumn 2024"]
[Site "Fagernes"]
[Date "2024.10.09"]
[Round "4.5"]
[White "Mitusov, Semen"]
[Black "Harish, Neeraj"]
[Result "1-0"]
[ECO "B33"]
[WhiteElo "2486"]
[BlackElo "2024"]
[Annotator "RC"]
[PlyCount "107"]
[EventDate "2024.10.03"]
[EventType "swiss"]
[EventCountry "NOR"]
[SourceTitle "playchess.com"]
[Source "ChessBase"]
[SourceQuality "1"]
[TimeControl "40/6000:2400+30"]

1. e4 {[%emt 0:01:24]} c5 {[%emt 0:00:00]} 2. Nf3 {[%emt 0:00:30]} Nc6 {[%emt 0:00:00]} 3. d4 {[%emt 0:00:54]} cxd4 {[%emt 0:00:00]} 4. Nxd4 {[%emt 0:00:00]} Nf6 {[%emt 0:00:00]} 5. Nc3 {[%emt 0:00:00]} e5 {[%emt 0:00:00]} 6. Ndb5 {[%emt 0:00:43]} d6 {[%emt 0:00:00]} 7. Nd5 {[%emt 0:01:51]} Nxd5 {[%emt 0:00:00]} 8. exd5 {[%emt 0:00:00]} Nb8 {[%emt 0:00:00]} 9. a4 {[%emt 0:00:13]} Be7 {[%emt 0:00:00]} 10. Be2 {[%emt 0:00:00]} O-O {[%emt 0:00:00]} 11. O-O {[%emt 0:00:21]} Nd7 {[%emt 0:00:00]} 12. Bd2 {[%emt 0:00:00]} a6 {[%emt 0:00:00]} 13. Na3 {[%emt 0:00:00]} a5 {[%emt 0:00:00]} 14. Bb5 {[%emt 0:04:39]} f5 {[%emt 0:00:50]} 15. f4 {[%emt 0:00:03]} exf4 {[%emt 0:00:00]} 16. Bxf4 {[%emt 0:00:00]} g5 {[%emt 0:00:00]} 17. Be3 {[%emt 0:00:00]} f4 {[%emt 0:00:00]} 18. Bd4 {[%emt 0:00:00]} Ne5 {[%emt 0:00:00]} 19. Qd2 {[%emt 0:01:14]} Bf6 {[%emt 0:00:39]} 20. Rae1 {[%emt 0:02:17]} Bf5 {[%emt 0:02:12]} 21. c3 {[%emt 0:00:16]} Rc8 {[%emt 0:07:24]} 22. h3 {[%emt 0:00:37]} Qc7 {[%emt 0:04:48]} 23. Be2 {[%emt 0:22:06]} Qf7 {[%emt 0:16:56]} 24. Bb6 {[%emt 0:24:50]} Be4 {[%emt 0:08:35]} 25. Bg4 {[%emt 0:04:20]} Nxg4 {[%emt 0:00:35]} 26. Rxe4 {[%emt 0:00:00]} Nh6 {[%emt 0:00:42]} 27. Re6 {[%emt 0:08:32]} Nf5 {[%emt 0:02:12]} 28. Qd3 {[%emt 0:00:00]} Rce8 {[%emt 0:02:35]} 29. Rfe1 {[%emt 0:04:55]} Be5 {[%emt 0:04:38]} 30. Rxe8 {[%emt 0:03:04]} Rxe8 {[%emt 0:00:00]} 31. Bf2 {[%emt 0:02:01]} Ne7 {[%emt 0:11:39]} 32. Nc4 {[%emt 0:00:56]} Ng6 {[%emt 0:05:13]} 33. Nxa5 {[%emt 0:02:13]} Rf8 {[%emt 0:04:50]} 34. Nc4 {[%emt 0:02:56]} h5 {[%emt 0:08:40]} 35. Qf3 {[%emt 0:00:00]} Qh7 {[%emt 0:05:04]} 36. a5 {[%emt 0:00:47]} Kh8 {[%emt 0:02:02]} 37. Nxe5 {[%emt 0:04:17]} Nxe5 {[%emt 0:00:00]} 38. Bd4 {[%emt 0:00:00]} g4 {[%emt 0:01:01]} 39. hxg4 {[%emt 0:00:56]} hxg4 {[%emt 0:00:00]} 40. Qxg4 {[%emt 0:00:18]} f3 {[%emt 0:00:00]} 41. Rf1 {[%emt 0:07:49]} Rf6 {[%emt 0:09:22]} 42. Bxe5 {[%emt 0:04:19]} dxe5 {[%emt 0:00:09]} 43. Qc8+ {[%emt 0:00:35]} Kg7 {[%emt 0:00:27]} 44. Qc7+ {[%emt 0:00:09]} Rf7 {[%emt 0:00:08]} 45. Qxe5+ {[%emt 0:00:05]} Kf8 {[%emt 0:00:37]} 46. Rxf3 {[%emt 0:02:02]} Rxf3 {[%emt 0:00:11]} 47. gxf3 {[%emt 0:00:10]} Qb1+ {[%emt 0:00:05]} 48. Kf2 {[%emt 0:00:07]} Qxb2+ {[%emt 0:00:04]} 49. Kg3 {[%emt 0:00:07]} Qb1 {[%emt 0:00:54]} 50. d6 {[%emt 0:04:06]} Qg1+ {[%emt 0:01:14]} 51. Kh3 {[%emt 0:00:04]} Qh1+ {[%emt 0:00:18]} 52. Kg4 {[%emt 0:00:04]} Qg1+ {[%emt 0:00:26]} 53. Kf5 {[%emt 0:00:45]} Qb1+ {[%emt 0:00:12]} 54. Kf6 {[%emt 0:00:07]} 1-0

[Event "Fagernes GM Open Autumn 2024"]
[Site "Fagernes"]
[Date "2024.10.09"]
[Round "4.6"]
[White "Krishnan, Ritvik"]
[Black "Sasikiran, Krishnan"]
[Result "1/2-1/2"]
[ECO "A38"]
[WhiteElo "2206"]
[BlackElo "2571"]
[Annotator "RC"]
[PlyCount "108"]
[EventDate "2024.10.03"]
[EventType "swiss"]
[EventCountry "NOR"]
[SourceTitle "playchess.com"]
[Source "ChessBase"]
[SourceQuality "1"]
[TimeControl "40/6000:2400+30"]

1. Nf3 {[%emt 0:00:00]} Nf6 {[%emt 0:03:05]} 2. c4 {[%emt 0:00:00]} c5 {[%emt 0:00:31]} 3. Nc3 {[%emt 0:00:00]} Nc6 {[%emt 0:00:26]} 4. g3 {[%emt 0:00:00]} g6 {[%emt 0:04:11]} 5. d4 {[%emt 0:00:00]} cxd4 {[%emt 0:03:23]} 6. Nxd4 {[%emt 0:00:00]} Bg7 {[%emt 0:01:07]} 7. Bg2 {[%emt 0:00:00]} h5 {[%emt 0:01:15]} 8. h3 {[%emt 0:03:46]} O-O {[%emt 0:01:26]} 9. Nc2 {[%emt 0:02:32]} d6 {[%emt 0:09:35]} 10. O-O {[%emt 0:01:31]} Be6 {[%emt 0:12:15]} 11. Nd5 {[%emt 0:04:16]} Rc8 {[%emt 0:05:15]} 12. b3 {[%emt 0:04:48]} Qd7 {[%emt 0:07:02]} 13. Kh2 {[%emt 0:04:15]} Bxd5 {[%emt 0:13:27]} 14. cxd5 {[%emt 0:00:00]} Ne5 {[%emt 0:00:00]} 15. Nd4 {[%emt 0:08:19]} Qc7 {[%emt 0:02:49]} 16. Bb2 {[%emt 0:01:08]} Qa5 {[%emt 0:02:49]} 17. a3 {[%emt 0:01:39]} Rc7 {[%emt 0:04:37]} 18. f4 {[%emt 0:05:14]} Ned7 {[%emt 0:01:11]} 19. e4 {[%emt 0:01:38]} Rfc8 {[%emt 0:05:35]} 20. Qe2 {[%emt 0:01:57]} Qb6 {[%emt 0:02:59]} 21. Rad1 {[%emt 0:02:12]} Nh7 {[%emt 0:03:56]} 22. Rf3 {[%emt 0:07:10]} Qa6 {[%emt 0:01:48]} 23. Qe1 {[%emt 0:07:17]} Qb6 {[%emt 0:02:15]} 24. Re3 {[%emt 0:01:12]} Nhf8 {[%emt 0:03:15]} 25. e5 {[%emt 0:01:06]} dxe5 {[%emt 0:00:13]} 26. fxe5 {[%emt 0:01:37]} e6 {[%emt 0:00:00]} 27. dxe6 {[%emt 0:01:25]} Nxe6 {[%emt 0:01:47]} 28. Nxe6 {[%emt 0:00:04]} Qxe6 {[%emt 0:00:00]} 29. Rd6 {[%emt 0:09:06]} Qe7 {[%emt 0:00:29]} 30. Rd2 {[%emt 0:12:10]} Nf8 {[%emt 0:01:30]} 31. Rf2 {[%emt 0:00:15]} Rc2 {[%emt 0:00:20]} 32. Bd5 {[%emt 0:02:13]} Ne6 {[%emt 0:00:19]} 33. Bc4 {[%emt 0:00:23]} Rxf2+ 34. Qxf2 {[%emt 0:00:00]} a6 {[%emt 0:00:31]} 35. a4 {[%emt 0:00:00]} Rd8 {[%emt 0:00:00]} 36. Re2 {[%emt 0:01:19]} Rd7 {[%emt 0:00:01]} 37. h4 {[%emt 0:01:12]} Kh7 {[%emt 0:00:03]} 38. Qf3 {[%emt 0:00:59]} Qc5 {[%emt 0:00:01]} 39. Qe3 {[%emt 0:03:27]} Qxe3 {[%emt 0:00:00]} 40. Rxe3 {[%emt 0:00:00]} Rd2+ {[%emt 0:00:01]} 41. Re2 {[%emt 0:40:07]} Rd7 {[%emt 0:06:14]} 42. Rf2 {[%emt 0:00:00]} Kg8 {[%emt 0:03:41]} 43. Kh3 {[%emt 0:00:00]} Nd8 {[%emt 0:13:03]} 44. g4 {[%emt 0:00:00]} hxg4+ {[%emt 0:01:13]} 45. Kxg4 {[%emt 0:00:00]} Re7 {[%emt 0:02:16]} 46. Re2 {[%emt 0:00:00]} Nc6 {[%emt 0:01:42]} 47. e6 {[%emt 0:00:00]} Bxb2 {[%emt 0:01:32]} 48. exf7+ {[%emt 0:00:00]} Kg7 {[%emt 0:01:56]} 49. Rxb2 {[%emt 0:00:00]} Ne5+ {[%emt 0:01:35]} 50. Kg5 {[%emt 0:00:00]} Nxc4 {[%emt 0:01:38]} 51. f8=B+ {[%emt 0:00:00]} Kxf8 {[%emt 0:00:10]} 52. bxc4 {[%emt 0:00:00]} Kg7 {[%emt 0:00:28]} 53. a5 {[%emt 0:00:00]} Rf7 {[%emt 0:07:07]} 54. Rb6 {[%emt 0:00:00]} Rf5+ {[%emt 0:00:55]} 1/2-1/2

[Event "Fagernes GM Open Autumn 2024"]
[Site "Fagernes"]
[Date "2024.10.09"]
[Round "4.7"]
[White "Oksendal, Martin"]
[Black "Amar, Elham"]
[Result "1-0"]
[ECO "B41"]
[WhiteElo "2271"]
[BlackElo "2540"]
[Annotator "TA"]
[PlyCount "82"]
[EventDate "2024.10.03"]
[EventType "swiss"]
[EventCountry "NOR"]
[SourceTitle "playchess.com"]
[Source "ChessBase"]
[SourceQuality "1"]
[TimeControl "40/6000:2400+30"]

{[%evp 13,82,24,47,29,19,28,27,0,13,29,27,27,22,0,0,0,39,0,0,0,28,0,57,32,25,27,18,28,58,11,61,22,26,22,16,37,27,25,42,26,20,32,31,20,7,-8,-6,0,0,-10,0,0,0,0,0,0,29970,29971,29971,29971,29973,29974,29974,29975,29975,29975,29975,29975,29977,29977,12848]} 1. e4 {[%emt 0:00:37]} c5 {[%emt 0:00:00]} 2. Nf3 {[%emt 0:00:00]} e6 {[%emt 0:00:00]} 3. d4 {[%emt 0:00:00]} cxd4 {[%emt 0:00:00]} 4. Nxd4 {[%emt 0:00:00]} a6 {[%emt 0:00:00]} 5. c4 {[%emt 0:00:00]} Nf6 {[%emt 0:00:00]} 6. Nc3 {[%emt 0:00:00]} Qc7 {[%emt 0:00:00]} 7. a3 {[%emt 0:00:00]} b6 {[%emt 0:00:00]} 8. f4 {[%emt 0:01:29]} Bb7 {[%emt 0:02:11]} 9. Bd3 {[%emt 0:00:00]} Nc6 {[%emt 0:06:12]} 10. Nxc6 {[%emt 0:00:27] White has an edge.} Qxc6 {[%emt 0:00:34]} 11. Qe2 {[%emt 0:04:52]} Bc5 {[%emt 0:04:17]} 12. Be3 {[%emt 0:13:30] Threatening Bxc5.} d6 {[%emt 0:10:49]} 13. Nd5 {[%emt 0:18:15][%cal Ob2b4]} Bxe3 {[%emt 0:04:23]} (13... exd5 $2 {perishes.} 14. exd5 Qc7 15. Bxc5+ Kf8 16. Be3 $18) 14. Qxe3 {[%emt 0:10:10][%cal Ob2b4]} Kf8 {[%emt 0:02:32]} 15. Nc3 {[%emt 0:06:16]} Qc5 {[%emt 0:00:00]} 16. Qd2 {[%emt 0:05:11]} Rc8 {[%emt 0:17:34]} 17. O-O-O {[%emt 0:05:35]} Ke7 {[%emt 0:08:50]} (17... d5 $11) 18. Rhe1 {[%emt 0:04:34] e5 would now be deadly.} Rhd8 {[%emt 0:06:35]} 19. Kb1 {[%emt 0:02:58]} Kf8 {[%emt 0:01:11]} 20. Qe2 {[%emt 0:02:14]} e5 {[%emt 0:05:37]} 21. Rf1 {[%emt 0:03:49]} (21. g3 $14 {was preferrable.}) 21... Re8 {[%emt 0:00:00]} ({Black should play} 21... exf4 $11 22. Rxf4 Nd7) 22. f5 {[%emt 0:01:39]} b5 $1 {[%emt 0:02:09]} 23. cxb5 {[%emt 0:03:18]} axb5 {[%emt 0:00:00]} 24. Bxb5 {[%emt 0:01:54]} Red8 {[%emt 0:02:10]} 25. Rc1 {[%emt 0:01:58][%cal Oc3d5]} Nxe4 {[%emt 0:02:18]} 26. Nxe4 {[%emt 0:00:04]} Bxe4+ {[%emt 0:00:00]} 27. Bd3 {[%emt 0:00:00]} Bxd3+ {[%emt 0:00:00]} 28. Qxd3 {[%emt 0:00:00]} Qb6 {[%emt 0:00:00]} 29. Qh3 {[%emt 0:04:24]} Rxc1+ {[%emt 0:03:58]} 30. Rxc1 $11 {[%emt 0:00:00][%mdl 4096] Endgame. KQR-KQR} h6 {[%emt 0:00:09]} 31. f6 {[%emt 0:00:44]} d5 {[%emt 0:01:12]} 32. fxg7+ {[%emt 0:00:00]} Kg8 {[%emt 0:00:00]} 33. Qf5 {[%emt 0:00:27]} e4 {[%emt 0:00:17]} 34. Rf1 {[%emt 0:00:47] Some like it hot} Qe6 {[%emt 0:00:25][%mdl 8192]} (34... Qc7 $11) 35. Qxe6 {[%emt 0:00:17] White mates.} fxe6 {[%emt 0:00:00] [#]} 36. Rf8+ $1 {[%emt 0:00:00][%mdl 512]} Rxf8 {[%emt 0:00:00]} 37. gxf8=R+ {[%emt 0:00:00]} Kxf8 {[%emt 0:00:00] KP-KP} 38. a4 {[%emt 0:00:00][%cal Ba3a4,Ba4a5,Ba5a6][%mdl 32]} Ke7 {[%emt 0:00:00]} 39. a5 {[%emt 0:00:00]} Kd6 {[%emt 0:00:00]} 40. a6 {[%emt 0:00:41]} e3 {[%emt 0:00:00]} 41. Kc2 {[%emt 0:41:04]} Kc6 {[%emt 0:38:20] Weighted Error Value: White=0.09 (flawless) /Black=0.28 (precise) .  Loses game:     	---       	Black=1      Mistake:       	White=1     	Black=2      Inaccurate:     	White=3     	Black=3      OK:         	White=9     	Black=12     Best:        	White=1     	Black=1      Strong:       	---       	Black=1} 1-0

[Event "Fagernes GM Open Autumn 2024"]
[Site "Fagernes"]
[Date "2024.10.09"]
[Round "4.8"]
[White "Gaikwad, Siddhant"]
[Black "Das, Sayantan"]
[Result "0-1"]
[ECO "D00"]
[WhiteElo "2039"]
[BlackElo "2471"]
[Annotator "TA"]
[PlyCount "42"]
[EventDate "2024.10.03"]
[EventType "swiss"]
[EventCountry "NOR"]
[SourceTitle "playchess.com"]
[Source "ChessBase"]
[SourceQuality "1"]
[TimeControl "40/6000:2400+30"]

{[%evp 9,42,-43,-7,-17,3,-27,10,-17,-7,-97,-84,-119,-118,-180,-202,-191,-198,-192,-188,-214,-228,-378,-377,-368,-331,-416,-479,-472,-459,-564,-564,-859,-866,-953,-916]} 1. d4 {[%emt 0:00:00]} Nf6 {[%emt 0:00:00]} 2. Nc3 {[%emt 0:00:00]} d5 {[%emt 0:00:00]} 3. Bf4 {[%emt 0:00:00]} e6 {[%emt 0:01:42]} 4. e3 {[%emt 0:00:00]} a6 {[%emt 0:00:51]} 5. Qf3 {[%emt 0:00:00]} c5 {[%emt 0:02:45]} 6. g4 {[%emt 0:14:38]} Nc6 {[%emt 0:12:43]} 7. Nge2 {[%emt 0:05:58]} Qa5 {[%emt 0:05:52]} 8. Bg2 {[%emt 0:07:23] The position is equal.} Ne4 {[%emt 0:13:00]} 9. Rd1 {[%emt 0:06:55]} (9. O-O-O $11 {keeps the balance.}) 9... g5 $17 {[%emt 0:07:44] Strongly threatening ...h5.} 10. Bg3 {[%emt 0:03:02]} h5 $1 {[%emt 0:01:01] Black is more active.} 11. h3 {[%emt 0:07:34] [#]} (11. gxh5 $17 {was called for.} f5 12. h3) 11... Rh6 $1 $19 {[%emt 0:04:22]} 12. Be5 {[%emt 0:11:28] Against Rf6} Nxe5 {[%emt 0:04:22]} 13. dxe5 {[%emt 0:00:00]} Bg7 {[%emt 0:00:15]} 14. O-O {[%emt 0:14:44] [#]} hxg4 $1 {[%emt 0:02:38]} (14... Bxe5 15. Nxe4 (15. gxh5 $2 Nf6 $19) 15... dxe4 16. Qxe4 $16) 15. Qxg4 {[%emt 0:02:48]} (15. hxg4 $142 Nxc3 (15... Bxe5 16. Nxe4 Bh2+ 17. Kh1 $19) 16. bxc3) 15... Rh4 {[%emt 0:01:40]} (15... Bxe5 $2 {loses.} 16. Nxe4 Rg6 (16... dxe4 $2 {too greedy.} 17. Qxg5 Bd7 18. Qg8+ Ke7 19. Rxd7+ Kxd7 20. Qxf7+ Kc8 21. Qf8+ Kc7 22. Qxh6 $18) 17. N4g3 $18 (17. Nxg5 Bd7 $18)) 16. Qf3 {[%emt 0:00:00][%cal Rc3e4] aiming for Nxe4.} Bxe5 {[%emt 0:00:33] Threatens to win with ...g4.} 17. Nxd5 {[%emt 0:02:36]} exd5 {[%emt 0:02:01]} 18. Rxd5 {[%emt 0:00:00] Black is clearly winning.} Qc7 {[%emt 0:00:05]} ({Not} 18... Bxb2 19. c3 Bxc3 (19... Be6 $2 20. Re5 $19) 20. Rc1 $19) 19. Nf4 {[%emt 0:07:16]} Nf6 {[%emt 0:01:44]} 20. Rfd1 {[%emt 0:00:00]} gxf4 {[%emt 0:01:28]} 21. Rd8+ {[%emt 0:00:00]} Qxd8 {[%emt 0:01:14] White got outplayed after the opening.   Weighted Error Value: White=0.74/Black=0.03 (flawless) .  Mistake:       	White=3     	---        Inaccurate:     	White=4     	Black=1      OK:         	White=2     	Black=8      Best:        	---       	Black=3      Strong:       	---       	Black=2} 0-1

[Event "Fagernes GM Open Autumn 2024"]
[Site "Fagernes"]
[Date "2024.10.09"]
[Round "4.9"]
[White "Hillarp Persson, Tiger"]
[Black "Wallace, John Paul"]
[Result "1-0"]
[ECO "D30"]
[WhiteElo "2455"]
[BlackElo "2373"]
[Annotator "TA"]
[PlyCount "121"]
[EventDate "2024.10.03"]
[EventType "swiss"]
[EventCountry "NOR"]
[SourceTitle "playchess.com"]
[Source "ChessBase"]
[SourceQuality "1"]
[TimeControl "40/6000:2400+30"]

{[%evp 9,121,13,17,11,6,7,20,31,33,12,30,24,19,20,27,0,27,30,2,16,64,46,72,47,44,50,59,62,54,68,71,59,107,83,108,97,98,80,104,94,134,137,142,116,154,145,143,151,149,143,144,153,152,154,151,116,137,122,170,175,173,184,203,203,190,160,190,195,214,218,221,220,216,197,350,343,335,313,543,495,429,436,448,420,531,257,531,514,542,531,29952,29959,29967,29967,29968,29968,29967,29959,29970,29972,29972,29972,29976,29977,29977,29979,29979,29980,29980,29981,29981,29982,29980,29982]} 1. d4 {[%emt 0:41:21]} d5 {[%emt 0:00:00]} 2. c4 {[%emt 0:00:00]} e6 {[%emt 0:00:00]} 3. Nf3 {[%emt 0:00:00]} a6 {[%emt 0:00:00]} 4. e3 {[%emt 0:00:32]} Nf6 {[%emt 0:00:00]} 5. Nbd2 {[%emt 0:05:06]} c5 {[%emt 0:00:22]} 6. cxd5 {[%emt 0:00:37]} exd5 {[%emt 0:00:00]} 7. b3 {[%emt 0:01:10]} Nc6 {[%emt 0:16:29]} 8. Bb2 {[%emt 0:00:00] Die Stellung ist ausgeglichen.} Bd6 {[%emt 0:00:00]} 9. dxc5 {[%emt 0:00:46]} Bxc5 {[%emt 0:00:00][%cal Bd6c5,Bc5a7,Ba7d4,Bd4b2][%mdl 32]} 10. Bd3 {[%emt 0:03:44]} O-O {[%emt 0:02:20]} 11. O-O {[%emt 0:00:00]} Ba7 {[%emt 0:00:46]} 12. a3 {[%emt 0:08:36]} Re8 {[%emt 0:00:59]} 13. Qc2 {[%emt 0:04:25]} d4 {[%emt 0:06:29]} 14. Ne4 {[%emt 0:11:06]} Ng4 {[%emt 0:08:37]} (14... Bg4 $11) 15. exd4 {[%emt 0:01:17]} (15. Rad1 {vereinfacht} Nge5 16. Nxe5 Nxe5 17. Bxd4 Bxd4 18. Ng3) 15... Bxd4 {[%emt 0:06:13]} 16. Neg5 {[%emt 0:09:56]} (16. Rad1 {vereinfacht} Bxb2 17. Qxb2 Nge5 18. Nxe5 Rxe5 19. Nd6) 16... Bxb2 {[%emt 0:33:06]} 17. Bxh7+ {[%emt 0:00:00]} Kf8 {[%emt 0:00:00]} 18. Qxb2 {[%emt 0:00:00]} Qf6 {[%emt 0:09:02]} 19. Qxf6 {[%emt 0:00:00]} gxf6 {[%emt 0:00:00]} 20. Ne4 $36 {[%emt 0:00:00][%mdl 2048] [#] Zielt auf Nd6 ab. Schwarz steht unter Druck.} Be6 {[%emt 0:03:07]} (20... Nge5 $14) 21. h3 {[%emt 0:00:21]} Nge5 {[%emt 0:00:24] Weiss muss nun ...Nxf3+ beachten.} 22. Nxe5 {[%emt 0:00:21]} (22. Nxf6 $6 Nxf3+ 23. gxf3 Red8 $11) (22. Nh4 {scheint wilder zu sein.} Bxb3 23. Nf5 Be6 24. Nxf6 Red8 25. Rfe1) 22... fxe5 {[%emt 0:00:48]} 23. Nc5 {[%emt 0:01:30][%cal Oa1e1]} Nd4 {[%emt 0:00:00]} 24. Be4 {[%emt 0:00:23]} Nxb3 {[%emt 0:02:41]} 25. Nxb3 {[%emt 0:00:00]} (25. Nxb7 Nxa1 26. Nc5 Rac8 (26... Nb3 27. Nxe6+ fxe6 28. Bxa8 $17) 27. Nxe6+ Rxe6 $14) 25... Bxb3 {[%emt 0:00:00]} 26. Rab1 {[%emt 0:00:00]} Bc4 {[%emt 0:01:44]} 27. Rfc1 {[%emt 0:01:05]} Bb5 {[%emt 0:00:00]} 28. Bxb7 {[%emt 0:00:00] Weiß steht aktiver.} Ra7 {[%emt 0:00:38]} 29. Bc6 {[%emt 0:00:00]} Re6 {[%emt 0:01:00]} 30. Bxb5 {[%emt 0:01:39]} axb5 $16 {[%emt 0:00:00][%mdl 4096] Endspiel. KRR-KRR} 31. Rc3 {[%emt 0:02:25]} (31. Rxb5 Rxa3 32. Re1 e4 $16) 31... Ra5 {[%emt 0:00:00]} 32. Rd1 {[%emt 0:00:00]} Kg7 {[%emt 0:01:26]} 33. Rd7 {[%emt 0:00:00]} Rea6 {[%emt 0:01:16]} (33... e4 $16 34. Rb7 Re5) 34. Rf3 $18 {[%emt 0:00:18]} Rf6 {[%emt 0:00:00]} 35. Re3 {[%emt 0:00:00]} b4 {[%emt 0:01:17]} 36. axb4 {[%emt 0:00:00]} Ra1+ {[%emt 0:00:00]} 37. Kh2 {[%emt 0:00:00]} Rxf2 {[%emt 0:00:00]} 38. Rxe5 {[%emt 0:00:00]} Raa2 {[%emt 0:00:00]} 39. Rg5+ {[%emt 0:00:00]} Kf6 {[%emt 0:00:00]} 40. Rdd5 {[%emt 0:00:00]} Rab2 {[%emt 0:00:00]} 41. b5 {[%emt 0:40:34]} Rfe2 $2 {[%emt 0:09:06] [#]} (41... Rf4 {war angesagt.} 42. Rc5 Rfb4 43. Rgf5+ Kg6) 42. Rdf5+ {[%emt 0:00:00]} Ke6 {[%emt 0:00:05]} 43. Rf3 {[%emt 0:00:00]} Rf2 $2 {[%emt 0:09:32]} (43... Ke7 44. Rg7 Rxb5 45. Rgxf7+ (45. Rfxf7+ Ke6 $18) 45... Ke8) 44. Rxf2 {[%emt 0:00:00]} Rxf2 {[%emt 0:00:02] KR-KR} 45. Kg1 {[%emt 0:00:00]} Rb2 {[%emt 0:00:16]} 46. g4 {[%emt 0:00:00]} Kf6 {[%emt 0:05:30]} 47. Rh5 {[%emt 0:00:00]} (47. h4 $142 Rb4 48. Kf2) 47... Kg6 $2 {[%emt 0:00:36]} (47... Ke7 48. Rd5 f6) 48. Kf1 {[%emt 0:00:00]} Rh2 {[%emt 0:01:09]} 49. Ke1 {[%emt 0:00:00]} f5 {[%emt 0:00:23]} 50. Rxf5 {[%emt 0:00:00] Weiß setzt Matt.} Rxh3 {[%emt 0:00:02]} 51. Kd2 {[%emt 0:00:00]} Rg3 {[%emt 0:01:00]} 52. Re5 {[%emt 0:00:00]} Kf6 {[%emt 0:06:30]} 53. Re3 {[%emt 0:00:00]} Rxg4 {[%emt 0:00:03]} 54. Kc3 {[%emt 0:00:00]} Kf7 {[%emt 0:00:19]} 55. Re2 {[%emt 0:00:00]} Rh4 {[%emt 0:01:16]} 56. b6 {[%emt 0:00:00][%cal Bb5b6,Bb6b7][%mdl 32]} Rh6 {[%emt 0:02:07]} 57. Rb2 {[%emt 0:00:00]} Rh8 {[%emt 0:00:29]} 58. b7 {[%emt 0:00:00]} Rb8 {[%emt 0:00:03]} 59. Kc4 {[%emt 0:00:00]} Ke6 {[%emt 0:00:02]} 60. Kc5 {[%emt 0:00:00]} Kd7 {[%emt 0:00:05]} 61. Kb6 {[%emt 0:00:00] Gewichteter Fehlerwert: Weiß=0.13 (sehr präzise) /Schwarz=0.44.  Fehler:       	Weiß=1     	Schwarz=6     Ungenau:       	Weiß=1     	Schwarz=5     OK:         	Weiß=22    	Schwarz=10    Bester:       	Weiß=7     	Schwarz=1} 1-0